[Event "Czech Open Rapid G1 2024"]
[Site "Pardubice"]
[Date "2024.07.17"]
[Round "1.27"]
[White "Pacl, Vaclav"]
[Black "Movsesian, Julia"]
[Result "0-1"]
[Annotator "RC"]
[ECO "A39"]
[WhiteElo "1986"]
[BlackElo "2202"]
[PlyCount "96"]
[EventDate "2024.07.16"]
[EventType "swiss"]
[EventCountry "CZE"]
[SourceTitle "playchess.com"]
[Source "ChessBase"]
[SourceQuality "1"]
[TimeControl "1200+10"]

1. Nf3 {[%emt 0:00:04]} c5 {[%emt 0:00:06]} 2. c4 {[%emt 0:00:07]} Nf6 {[%emt 0:00:05]} 3. g3 {[%emt 0:00:08]} Nc6 {[%emt 0:00:07]} 4. Bg2 {[%emt 0:00:02]} g6 {[%emt 0:00:02]} 5. O-O {[%emt 0:00:02]} Bg7 {[%emt 0:00:08]} 6. Nc3 {[%emt 0:00:02]} O-O {[%emt 0:00:10]} 7. d4 {[%emt 0:00:09]} cxd4 {[%emt 0:00:34]} 8. Nxd4 {[%emt 0:00:01]} Nxd4 {[%emt 0:00:01]} 9. Qxd4 {[%emt 0:00:03]} d6 {[%emt 0:00:01]} 10. Qd3 {[%emt 0:00:01]} Nd7 {[%emt 0:00:14]} 11. b3 {[%emt 0:00:11]} Nc5 {[%emt 0:00:15]} 12. Qc2 {[%emt 0:00:02]} Bf5 {[%emt 0:00:36]} 13. e4 {[%emt 0:01:55]} Nxe4 {[%emt 0:00:19]} 14. Bxe4 {[%emt 0:00:08]} Bxe4 {[%emt 0:00:02]} 15. Qxe4 {[%emt 0:00:03]} Bxc3 {[%emt 0:00:02]} 16. Rb1 {[%emt 0:00:02]} Qc7 {[%emt 0:01:09]} 17. Bh6 {[%emt 0:00:08]} Rfe8 {[%emt 0:01:12]} 18. Rbc1 {[%emt 0:00:11]} Bf6 {[%emt 0:00:48]} 19. h4 {[%emt 0:00:13]} Qc6 {[%emt 0:00:21]} 20. Qe2 {[%emt 0:00:44]} Qc5 {[%emt 0:00:18]} 21. Rfd1 {[%emt 0:00:22]} Rac8 {[%emt 0:01:58]} 22. Rd5 {[%emt 0:01:31]} Qa3 {[%emt 0:00:14]} 23. Rc2 {[%emt 0:00:23]} Rc5 {[%emt 0:01:04]} 24. Rd1 {[%emt 0:03:11]} Qa6 {[%emt 0:01:22]} 25. Be3 {[%emt 0:00:34]} Rf5 {[%emt 0:00:36]} 26. Qd3 {[%emt 0:01:56]} Qc6 {[%emt 0:01:43]} 27. Qe2 {[%emt 0:01:55]} a6 {[%emt 0:00:18]} 28. Bd4 {[%emt 0:00:31]} Bxd4 {[%emt 0:00:13]} 29. Rxd4 {[%emt 0:00:02]} Re5 {[%emt 0:00:01]} 30. Qd1 {[%emt 0:00:27]} Rc8 {[%emt 0:00:08]} 31. Rcd2 {[%emt 0:01:52]} b5 {[%emt 0:00:18]} 32. Qf1 {[%emt 0:00:03]} Qb6 {[%emt 0:00:26]} 33. Qh3 {[%emt 0:02:09]} Rc7 {[%emt 0:00:13]} 34. Qf1 {[%emt 0:01:19]} Rec5 {[%emt 0:01:22]} 35. cxb5 {[%emt 0:00:46]} axb5 {[%emt 0:00:12]} 36. Qg2 {[%emt 0:00:15]} Rc1+ {[%emt 0:00:50]} 37. Kh2 {[%emt 0:00:24]} h5 {[%emt 0:01:29]} 38. g4 {[%emt 0:00:35]} hxg4 {[%emt 0:00:43]} 39. Rxg4 {[%emt 0:00:03]} R7c5 {[%emt 0:00:18]} 40. Rg5 {[%emt 0:00:21]} R1c3 {[%emt 0:01:59]} 41. h5 {[%emt 0:00:23]} Rxg5 {[%emt 0:00:08]} 42. Qxg5 {[%emt 0:00:03]} Rc5 {[%emt 0:00:18]} 43. Qxe7 {[%emt 0:00:11]} Rxh5+ {[%emt 0:00:02]} 44. Kg2 {[%emt 0:00:01]} Qc6+ {[%emt 0:00:22]} 45. f3 {[%emt 0:00:31]} Rf5 {[%emt 0:00:21]} 46. Qe2 {[%emt 0:00:37]} Rg5+ {[%emt 0:00:04]} 47. Kf1 {[%emt 0:01:05]} Qc5 {[%emt 0:00:07]} 48. Qf2 {[%emt 0:00:05]} Qc1+ {[%emt 0:00:01]} 0-1

[Event "Czech Open Rapid G1 2024"]
[Site "Pardubice"]
[Date "2024.07.17"]
[Round "1.28"]
[White "Freisler, Pavel"]
[Black "Svoboda, Petr"]
[Result "1-0"]
[Annotator "RC"]
[ECO "E69"]
[WhiteElo "2261"]
[BlackElo "1935"]
[PlyCount "95"]
[EventDate "2024.07.16"]
[EventType "swiss"]
[EventCountry "CZE"]
[SourceTitle "playchess.com"]
[Source "ChessBase"]
[SourceQuality "1"]
[TimeControl "1200+10"]

1. Nf3 {[%emt 0:00:08]} Nf6 {[%emt 0:00:07]} 2. c4 {[%emt 0:00:03]} g6 {[%emt 0:00:11]} 3. g3 {[%emt 0:00:02]} Bg7 {[%emt 0:00:04]} 4. Bg2 {[%emt 0:00:02]} d6 {[%emt 0:00:11]} 5. d4 {[%emt 0:00:09]} O-O {[%emt 0:00:10]} 6. O-O {[%emt 0:00:09]} Nbd7 {[%emt 0:00:31]} 7. Nc3 {[%emt 0:00:04]} c6 {[%emt 0:00:07]} 8. e4 {[%emt 0:00:24]} e5 {[%emt 0:00:07]} 9. h3 {[%emt 0:00:05]} exd4 {[%emt 0:01:15]} 10. Nxd4 {[%emt 0:00:03]} Qc7 {[%emt 0:00:12]} 11. Bf4 {[%emt 0:00:35]} Ne5 {[%emt 0:00:59]} 12. b3 {[%emt 0:00:08]} Nh5 {[%emt 0:00:12]} 13. Be3 {[%emt 0:00:06]} a5 {[%emt 0:04:38]} 14. Rc1 {[%emt 0:00:17]} Nd7 {[%emt 0:01:50]} 15. Qd2 {[%emt 0:00:54]} Re8 {[%emt 0:00:11]} 16. Rfd1 {[%emt 0:02:28]} Nc5 {[%emt 0:01:05]} 17. Nde2 {[%emt 0:01:01]} Bf8 {[%emt 0:02:44]} 18. Rb1 {[%emt 0:01:54]} Be6 {[%emt 0:00:21]} 19. Nd4 {[%emt 0:01:17]} Rad8 {[%emt 0:00:26]} 20. Nxe6 {[%emt 0:00:08]} Nxe6 {[%emt 0:00:32]} 21. Na4 {[%emt 0:00:42]} Nc5 {[%emt 0:00:44]} 22. Nxc5 {[%emt 0:00:11]} dxc5 {[%emt 0:00:02]} 23. Qc2 {[%emt 0:00:09]} Rxd1+ {[%emt 0:00:17]} 24. Rxd1 {[%emt 0:00:01]} Rd8 {[%emt 0:00:02]} 25. Rxd8 {[%emt 0:01:52]} Qxd8 {[%emt 0:00:49]} 26. Qd2 {[%emt 0:00:08]} Qxd2 {[%emt 0:00:12]} 27. Bxd2 {[%emt 0:00:02]} a4 {[%emt 0:02:17]} 28. bxa4 {[%emt 0:00:15]} Bg7 {[%emt 0:00:01]} 29. h4 {[%emt 0:00:38]} Bd4 {[%emt 0:00:08]} 30. Kf1 {[%emt 0:00:03]} Kf8 {[%emt 0:00:27]} 31. Bh3 {[%emt 0:00:04]} Ke7 {[%emt 0:00:28]} 32. Bc8 {[%emt 0:00:05]} b6 {[%emt 0:00:08]} 33. a5 {[%emt 0:00:08]} Kd8 {[%emt 0:00:19]} 34. Bg4 {[%emt 0:00:52]} b5 {[%emt 0:00:51]} 35. a6 {[%emt 0:03:41]} Kc7 {[%emt 0:00:01]} 36. Ba5+ {[%emt 0:00:01]} Kb8 {[%emt 0:00:25]} 37. cxb5 {[%emt 0:01:03]} cxb5 {[%emt 0:00:18]} 38. Bd7 {[%emt 0:00:02]} c4 {[%emt 0:01:37]} 39. Bxb5 {[%emt 0:00:40]} c3 {[%emt 0:00:01]} 40. Bd3 {[%emt 0:01:16]} Nf6 {[%emt 0:00:13]} 41. Ke2 {[%emt 0:00:32]} Ng4 {[%emt 0:00:07]} 42. f3 {[%emt 0:00:16]} Ne5 {[%emt 0:00:17]} 43. Bb4 {[%emt 0:00:29]} Nc6 {[%emt 0:00:10]} 44. Bd6+ {[%emt 0:00:18]} Ka7 {[%emt 0:00:04]} 45. Kd1 {[%emt 0:00:20]} Bf6 {[%emt 0:00:49]} 46. Bc5+ {[%emt 0:00:06]} Kb8 {[%emt 0:00:11]} 47. Bc4 {[%emt 0:00:05]} Nd4 {[%emt 0:00:16]} 48. a7+ {[%emt 0:00:15]} 1-0

[Event "Czech Open Rapid G1 2024"]
[Site "Pardubice"]
[Date "2024.07.17"]
[Round "1.29"]
[White "Neuhoff, Laertes"]
[Black "Jun, Rudolf"]
[Result "1/2-1/2"]
[Annotator "RC"]
[ECO "B33"]
[WhiteElo "2090"]
[BlackElo "2232"]
[PlyCount "83"]
[EventDate "2024.07.16"]
[EventType "swiss"]
[EventCountry "CZE"]
[SourceTitle "playchess.com"]
[Source "ChessBase"]
[SourceQuality "1"]
[TimeControl "1200+10"]

1. e4 {[%emt 0:00:01]} c5 {[%emt 0:00:04]} 2. Nf3 {[%emt 0:00:01]} Nc6 {[%emt 0:00:03]} 3. d4 {[%emt 0:00:02]} cxd4 {[%emt 0:00:02]} 4. Nxd4 {[%emt 0:00:01]} Nf6 {[%emt 0:00:02]} 5. Nc3 {[%emt 0:00:00]} e5 {[%emt 0:00:01]} 6. Ndb5 {[%emt 0:00:01]} d6 {[%emt 0:00:01]} 7. Bg5 {[%emt 0:00:02]} a6 {[%emt 0:00:01]} 8. Na3 {[%emt 0:00:01]} b5 {[%emt 0:00:02]} 9. Bxf6 {[%emt 0:00:02]} gxf6 {[%emt 0:00:02]} 10. Nd5 {[%emt 0:00:01]} Bg7 {[%emt 0:00:10]} 11. Bd3 {[%emt 0:00:08]} Ne7 {[%emt 0:00:14]} 12. Nxe7 {[%emt 0:00:16]} Qxe7 {[%emt 0:00:01]} 13. O-O {[%emt 0:00:09]} O-O {[%emt 0:00:42]} 14. c4 {[%emt 0:00:08]} f5 {[%emt 0:01:07]} 15. Qf3 {[%emt 0:00:02]} bxc4 {[%emt 0:01:32]} 16. Nxc4 {[%emt 0:03:56]} d5 {[%emt 0:01:36]} 17. exd5 {[%emt 0:00:09]} e4 {[%emt 0:00:11]} 18. Qe3 {[%emt 0:00:04]} Qf6 {[%emt 0:01:40]} 19. Be2 {[%emt 0:00:18]} Bb7 {[%emt 0:00:25]} 20. Qb6 {[%emt 0:02:45]} Qxb6 {[%emt 0:00:18]} 21. Nxb6 {[%emt 0:00:03]} Rad8 {[%emt 0:00:19]} 22. Rfd1 {[%emt 0:00:17]} Rd6 {[%emt 0:00:26]} 23. Nc4 {[%emt 0:00:08]} Rxd5 {[%emt 0:00:13]} 24. Nd6 {[%emt 0:01:30]} Rxd1+ {[%emt 0:02:57]} 25. Rxd1 {[%emt 0:00:04]} Ba8 {[%emt 0:00:32]} 26. Nxf5 {[%emt 0:00:23]} Bxb2 {[%emt 0:00:24]} 27. Bxa6 {[%emt 0:00:14]} Be5 {[%emt 0:01:14]} 28. Bc4 {[%emt 0:00:17]} h5 {[%emt 0:01:07]} 29. Nh6+ {[%emt 0:10:27]} Kg7 {[%emt 0:00:02]} 30. Nxf7 {[%emt 0:00:01]} Bf6 {[%emt 0:04:29]} 31. Nd6 {[%emt 0:00:42]} Be5 {[%emt 0:01:50]} 32. Nf7 {[%emt 0:00:52]} Bf6 {[%emt 0:00:06]} 33. Nd6 {[%emt 0:00:16]} Be5 {[%emt 0:00:04]} 34. Bd5 {[%emt 0:00:59]} Bxd6 {[%emt 0:01:32]} 35. Bxa8 {[%emt 0:00:03]} Bc5 {[%emt 0:01:18]} 36. Bxe4 {[%emt 0:00:52]} Rxf2 {[%emt 0:00:03]} 37. Kh1 {[%emt 0:00:31]} Rxa2 {[%emt 0:00:02]} 38. g3 {[%emt 0:00:18]} Be7 {[%emt 0:00:18]} 39. Rd7 {[%emt 0:00:14]} Kf6 {[%emt 0:00:13]} 40. Rd5 {[%emt 0:00:02]} h4 {[%emt 0:00:22]} 41. gxh4 {[%emt 0:00:22]} Ra4 {[%emt 0:00:25]} 42. Bf3 {[%emt 0:00:15]} 1/2-1/2

[Event "Czech Open Rapid G1 2024"]
[Site "Pardubice"]
[Date "2024.07.17"]
[Round "1.30"]
[White "Jurek, Josef"]
[Black "Kroulik, Vaclav"]
[Result "1-0"]
[Annotator "RC"]
[ECO "A35"]
[WhiteElo "2200"]
[BlackElo "1976"]
[PlyCount "85"]
[EventDate "2024.07.16"]
[EventType "swiss"]
[EventCountry "CZE"]
[SourceTitle "playchess.com"]
[Source "ChessBase"]
[SourceQuality "1"]
[TimeControl "1200+10"]

1. Nf3 {[%emt 0:00:05]} c5 {[%emt 0:00:04]} 2. c4 {[%emt 0:00:04]} Nc6 {[%emt 0:00:02]} 3. Nc3 {[%emt 0:00:02]} g6 {[%emt 0:00:05]} 4. e3 {[%emt 0:00:02]} Nf6 {[%emt 0:00:07]} 5. d4 {[%emt 0:00:04]} cxd4 {[%emt 0:00:03]} 6. exd4 {[%emt 0:00:02]} d5 {[%emt 0:00:13]} 7. cxd5 {[%emt 0:00:10]} Nxd5 {[%emt 0:00:02]} 8. Qb3 {[%emt 0:00:55]} Nxc3 {[%emt 0:00:32]} 9. Bc4 {[%emt 0:00:10]} e6 {[%emt 0:00:15]} 10. bxc3 {[%emt 0:00:34]} Be7 {[%emt 0:00:54]} 11. Bh6 {[%emt 0:00:57]} Bd7 {[%emt 0:01:03]} 12. Be2 {[%emt 0:01:35]} Qc7 {[%emt 0:03:43]} 13. O-O {[%emt 0:00:34]} Rc8 {[%emt 0:00:21]} 14. Rac1 {[%emt 0:00:55]} Na5 {[%emt 0:01:17]} 15. Qb2 {[%emt 0:00:17]} f6 {[%emt 0:01:26]} 16. c4 {[%emt 0:00:43]} Kf7 {[%emt 0:00:22]} 17. Bd2 {[%emt 0:02:01]} b6 {[%emt 0:01:27]} 18. Bb4 {[%emt 0:01:22]} Nc6 {[%emt 0:01:14]} 19. Bxe7 {[%emt 0:00:10]} Nxe7 {[%emt 0:00:04]} 20. Rfd1 {[%emt 0:00:38]} Qd6 {[%emt 0:01:11]} 21. Qb3 {[%emt 0:00:53]} Rhd8 {[%emt 0:00:55]} 22. Qe3 {[%emt 0:00:42]} Nf5 {[%emt 0:00:22]} 23. Qb3 {[%emt 0:00:55]} Bc6 {[%emt 0:02:00]} 24. c5 {[%emt 0:00:22]} bxc5 {[%emt 0:01:10]} 25. dxc5 {[%emt 0:00:07]} Qe7 {[%emt 0:00:43]} 26. Rxd8 {[%emt 0:01:22]} Rxd8 {[%emt 0:00:04]} 27. Bc4 {[%emt 0:00:18]} Bxf3 {[%emt 0:00:42]} 28. Qxf3 {[%emt 0:00:10]} Nd4 {[%emt 0:00:07]} 29. Qe3 {[%emt 0:01:01]} Kg7 {[%emt 0:00:18]} 30. Bf1 {[%emt 0:00:55]} e5 {[%emt 0:00:26]} 31. f4 {[%emt 0:00:43]} Nf5 {[%emt 0:00:22]} 32. Qf2 {[%emt 0:00:32]} e4 {[%emt 0:00:10]} 33. c6 {[%emt 0:00:32]} e3 {[%emt 0:00:13]} 34. Qe1 {[%emt 0:00:59]} Nd4 {[%emt 0:00:59]} 35. Ba6 {[%emt 0:00:25]} Qc7 {[%emt 0:02:48]} 36. Qxe3 {[%emt 0:00:37]} Rd6 {[%emt 0:00:10]} 37. Rb1 {[%emt 0:01:09]} Rxc6 {[%emt 0:00:14]} 38. Rb7 {[%emt 0:00:40]} Qxb7 {[%emt 0:00:04]} 39. Bxb7 {[%emt 0:00:03]} Rc1+ {[%emt 0:00:02]} 40. Kf2 {[%emt 0:00:25]} Rc2+ {[%emt 0:00:01]} 41. Kf1 {[%emt 0:00:11]} Nf5 {[%emt 0:00:26]} 42. Qa3 {[%emt 0:00:30]} Kh6 {[%emt 0:00:18]} 43. Be4 {[%emt 0:00:11]} 1-0

[Event "Czech Open Rapid G1 2024"]
[Site "Pardubice"]
[Date "2024.07.17"]
[Round "1.31"]
[White "Park, Inchan"]
[Black "Brendel, Oliver"]
[Result "0-1"]
[Annotator "RC"]
[ECO "D77"]
[WhiteElo "1856"]
[BlackElo "2291"]
[PlyCount "92"]
[EventDate "2024.07.16"]
[EventType "swiss"]
[EventCountry "CZE"]
[SourceTitle "playchess.com"]
[Source "ChessBase"]
[SourceQuality "1"]
[TimeControl "1200+10"]

1. d4 {[%emt 0:00:02]} Nf6 {[%emt 0:00:02]} 2. Nf3 {[%emt 0:00:03]} g6 {[%emt 0:00:01]} 3. g3 {[%emt 0:00:02]} Bg7 {[%emt 0:00:03]} 4. Bg2 {[%emt 0:00:02]} O-O {[%emt 0:00:05]} 5. O-O {[%emt 0:00:02]} d5 {[%emt 0:00:02]} 6. c4 {[%emt 0:00:57]} dxc4 {[%emt 0:00:03]} 7. Na3 {[%emt 0:00:16]} c5 {[%emt 0:00:02]} 8. dxc5 {[%emt 0:00:21]} c3 {[%emt 0:00:02]} 9. Nb5 {[%emt 0:00:07]} Na6 {[%emt 0:02:25]} 10. c6 {[%emt 0:01:57]} Qxd1 {[%emt 0:01:40]} 11. Rxd1 {[%emt 0:00:11]} c2 {[%emt 0:00:10]} 12. Rd2 {[%emt 0:00:32]} Nb4 {[%emt 0:05:38]} 13. Nfd4 {[%emt 0:01:24]} Nxc6 {[%emt 0:00:31]} 14. Nxc6 {[%emt 0:01:12]} bxc6 {[%emt 0:00:01]} 15. Bxc6 {[%emt 0:00:01]} Rb8 {[%emt 0:00:59]} 16. Nd4 {[%emt 0:01:55]} Rd8 {[%emt 0:00:39]} 17. Nb3 {[%emt 0:02:49]} Bf5 {[%emt 0:01:01]} 18. f3 {[%emt 0:02:06]} Rbc8 {[%emt 0:01:10]} 19. Rxd8+ {[%emt 0:00:51]} Rxd8 {[%emt 0:00:02]} 20. e4 {[%emt 0:00:02]} Rd1+ {[%emt 0:00:34]} 21. Kf2 {[%emt 0:00:02]} Be6 {[%emt 0:00:16]} 22. Nd2 {[%emt 0:02:19]} Bxa2 {[%emt 0:01:48]} 23. Ba4 {[%emt 0:00:44]} Bb1 {[%emt 0:00:03]} 24. Nb3 {[%emt 0:01:48]} Nd7 {[%emt 0:02:35]} 25. Ke3 {[%emt 0:02:07]} Nc5 {[%emt 0:01:22]} 26. Nxc5 {[%emt 0:00:19]} Rxc1 {[%emt 0:00:04]} 27. Bxc2 {[%emt 0:01:11]} Rxc2 {[%emt 0:00:07]} 28. Nd3 {[%emt 0:00:01]} Bxb2 {[%emt 0:01:39]} 29. Rxb1 {[%emt 0:00:01]} Bc3 {[%emt 0:00:02]} 30. h4 {[%emt 0:01:13]} e5 {[%emt 0:00:03]} 31. Ne1 {[%emt 0:00:21]} Bd4+ {[%emt 0:00:24]} 32. Kd3 {[%emt 0:00:09]} Ra2 {[%emt 0:00:40]} 33. g4 {[%emt 0:00:20]} h5 {[%emt 0:00:12]} 34. Nc2 {[%emt 0:00:08]} Bf2 {[%emt 0:00:13]} 35. Rb3 {[%emt 0:00:09]} a5 {[%emt 0:00:12]} 36. Na3 {[%emt 0:00:15]} Bxh4 {[%emt 0:00:19]} 37. Nc4 {[%emt 0:00:00]} Bg3 {[%emt 0:00:07]} 38. Rb5 {[%emt 0:00:15]} h4 {[%emt 0:00:12]} 39. Nxe5 {[%emt 0:00:15]} Bxe5 {[%emt 0:00:16]} 40. Rxe5 {[%emt 0:00:01]} h3 {[%emt 0:00:07]} 41. Rb5 {[%emt 0:00:03]} h2 {[%emt 0:00:03]} 42. Rb1 {[%emt 0:00:01]} Rg2 {[%emt 0:00:02]} 43. Rh1 {[%emt 0:00:32]} a4 {[%emt 0:00:01]} 44. f4 {[%emt 0:00:09]} a3 {[%emt 0:00:02]} 45. Ke3 {[%emt 0:00:00]} a2 {[%emt 0:00:03]} 46. Kf3 {[%emt 0:00:01]} Rg1 {[%emt 0:00:08]} 0-1

[Event "Czech Open Rapid G1 2024"]
[Site "Pardubice"]
[Date "2024.07.17"]
[Round "1.32"]
[White "Ludvik, Tomas"]
[Black "Skoloud, Barnabas"]
[Result "1-0"]
[Annotator "RC"]
[ECO "A96"]
[WhiteElo "2210"]
[BlackElo "1914"]
[PlyCount "53"]
[EventDate "2024.07.16"]
[EventType "swiss"]
[EventCountry "CZE"]
[SourceTitle "playchess.com"]
[Source "ChessBase"]
[SourceQuality "1"]
[TimeControl "1200+10"]

1. d4 {[%emt 0:00:03]} e6 {[%emt 0:00:01]} 2. c4 {[%emt 0:00:05]} f5 {[%emt 0:00:05]} 3. Nf3 {[%emt 0:00:05]} Nf6 {[%emt 0:00:09]} 4. g3 {[%emt 0:00:05]} Be7 {[%emt 0:00:10]} 5. Bg2 {[%emt 0:00:03]} d6 {[%emt 0:00:28]} 6. O-O {[%emt 0:00:06]} O-O {[%emt 0:00:11]} 7. b3 {[%emt 0:02:57]} Ne4 {[%emt 0:00:20]} 8. Bb2 {[%emt 0:00:05]} Bf6 {[%emt 0:01:03]} 9. Nbd2 {[%emt 0:00:37]} c5 {[%emt 0:00:42]} 10. Qc2 {[%emt 0:01:42]} Nxd2 {[%emt 0:03:36]} 11. Qxd2 {[%emt 0:00:02]} Nc6 {[%emt 0:01:53]} 12. Rad1 {[%emt 0:00:53]} Qe7 {[%emt 0:01:39]} 13. Rfe1 {[%emt 0:01:37]} e5 {[%emt 0:00:26]} 14. dxe5 {[%emt 0:04:14]} dxe5 {[%emt 0:00:07]} 15. e4 {[%emt 0:00:06]} f4 {[%emt 0:05:33]} 16. gxf4 {[%emt 0:00:34]} exf4 {[%emt 0:00:17]} 17. e5 {[%emt 0:00:34]} Bg5 {[%emt 0:00:35]} 18. e6 {[%emt 0:04:18]} Bf6 {[%emt 0:01:56]} 19. Ba3 {[%emt 0:00:40]} g5 {[%emt 0:02:31]} 20. Qd5 {[%emt 0:01:14]} Rd8 {[%emt 0:00:37]} 21. Qxc5 {[%emt 0:00:21]} Rxd1 {[%emt 0:00:03]} 22. Rxd1 {[%emt 0:00:04]} g4 {[%emt 0:00:43]} 23. Qh5 {[%emt 0:02:20]} Qxa3 {[%emt 0:00:22]} 24. Qf7+ {[%emt 0:00:02]} Kh8 {[%emt 0:00:04]} 25. Qxf6+ {[%emt 0:00:03]} Kg8 {[%emt 0:00:02]} 26. Qf7+ {[%emt 0:00:30]} Kh8 {[%emt 0:00:01]} 27. Ng5 {[%emt 0:00:02]} 1-0

[Event "Czech Open Rapid G1 2024"]
[Site "Pardubice"]
[Date "2024.07.17"]
[Round "1.33"]
[White "Pejrimovsky, Tadeas Rubel"]
[Black "Berin, Artem"]
[Result "0-1"]
[Annotator "RC"]
[ECO "C00"]
[WhiteElo "1847"]
[BlackElo "2234"]
[PlyCount "70"]
[EventDate "2024.07.16"]
[EventType "swiss"]
[EventCountry "CZE"]
[SourceTitle "playchess.com"]
[Source "ChessBase"]
[SourceQuality "1"]
[TimeControl "1200+10"]

1. e4 {[%emt 0:00:03]} e6 {[%emt 0:00:01]} 2. Nf3 {[%emt 0:00:02]} d5 {[%emt 0:00:01]} 3. e5 {[%emt 0:00:02]} c5 {[%emt 0:00:03]} 4. b4 {[%emt 0:00:01]} cxb4 {[%emt 0:00:02]} 5. d4 {[%emt 0:00:01]} Bd7 {[%emt 0:00:19]} 6. a3 {[%emt 0:00:07]} bxa3 {[%emt 0:00:02]} 7. c3 {[%emt 0:00:33]} Nc6 {[%emt 0:00:05]} 8. Bd3 {[%emt 0:00:36]} Rc8 {[%emt 0:01:31]} 9. O-O {[%emt 0:00:47]} h6 {[%emt 0:02:10]} 10. Nxa3 {[%emt 0:00:15]} a6 {[%emt 0:00:07]} 11. Nc2 {[%emt 0:01:29]} Na5 {[%emt 0:00:34]} 12. Bd2 {[%emt 0:00:52]} Ne7 {[%emt 0:00:39]} 13. Ne3 {[%emt 0:00:19]} Nc4 {[%emt 0:00:27]} 14. Nxc4 {[%emt 0:00:17]} dxc4 {[%emt 0:00:03]} 15. Bb1 {[%emt 0:00:14]} Bc6 {[%emt 0:02:40]} 16. Re1 {[%emt 0:01:39]} Nd5 {[%emt 0:00:33]} 17. Kh1 {[%emt 0:00:49]} a5 {[%emt 0:00:21]} 18. Qc2 {[%emt 0:02:08]} b5 {[%emt 0:00:10]} 19. Ng1 {[%emt 0:00:56]} b4 {[%emt 0:00:41]} 20. cxb4 {[%emt 0:01:44]} axb4 {[%emt 0:00:04]} 21. Qxc4 {[%emt 0:03:41]} Ne3 {[%emt 0:00:38]} 22. Qxc6+ {[%emt 0:01:10]} Rxc6 {[%emt 0:00:03]} 23. Bxe3 {[%emt 0:00:01]} Be7 {[%emt 0:01:28]} 24. Be4 {[%emt 0:00:03]} Rc8 {[%emt 0:00:05]} 25. f4 {[%emt 0:00:41]} O-O {[%emt 0:00:50]} 26. f5 {[%emt 0:00:00]} exf5 {[%emt 0:00:05]} 27. Bxf5 {[%emt 0:00:00]} Ra8 {[%emt 0:01:16]} 28. Rab1 {[%emt 0:01:00]} Qd5 {[%emt 0:00:48]} 29. Nf3 {[%emt 0:00:10]} Ra2 {[%emt 0:00:56]} 30. Bg1 {[%emt 0:00:55]} b3 {[%emt 0:01:02]} 31. Be4 {[%emt 0:00:05]} Qc4 {[%emt 0:00:05]} 32. d5 {[%emt 0:00:11]} Bb4 {[%emt 0:00:15]} 33. Re3 {[%emt 0:00:38]} b2 {[%emt 0:00:44]} 34. d6 {[%emt 0:01:06]} Ra1 {[%emt 0:00:42]} 35. Bd3 {[%emt 0:00:51]} Qc1 {[%emt 0:00:10]} 0-1

[Event "Czech Open Rapid G1 2024"]
[Site "Pardubice"]
[Date "2024.07.17"]
[Round "1.34"]
[White "Bouska, Jiri"]
[Black "Pejrimovska, Viola Ruby"]
[Result "1-0"]
[Annotator "RC"]
[ECO "B33"]
[WhiteElo "2222"]
[BlackElo "1780"]
[PlyCount "79"]
[EventDate "2024.07.16"]
[EventType "swiss"]
[EventCountry "CZE"]
[SourceTitle "playchess.com"]
[Source "ChessBase"]
[SourceQuality "1"]
[TimeControl "1200+10"]

1. e4 {[%emt 0:00:01]} c5 {[%emt 0:00:01]} 2. Nf3 {[%emt 0:00:02]} Nc6 {[%emt 0:00:04]} 3. d4 {[%emt 0:00:02]} cxd4 {[%emt 0:00:02]} 4. Nxd4 {[%emt 0:00:02]} Nf6 {[%emt 0:00:02]} 5. Nc3 {[%emt 0:00:02]} e5 {[%emt 0:00:02]} 6. Ndb5 {[%emt 0:00:02]} d6 {[%emt 0:00:02]} 7. Nd5 {[%emt 0:00:01]} Nxd5 {[%emt 0:00:02]} 8. exd5 {[%emt 0:00:02]} Ne7 {[%emt 0:00:02]} 9. c4 {[%emt 0:00:15]} Nf5 {[%emt 0:00:02]} 10. Bd3 {[%emt 0:00:13]} Be7 {[%emt 0:01:17]} 11. O-O {[%emt 0:00:22]} O-O {[%emt 0:00:04]} 12. Qc2 {[%emt 0:00:12]} g6 {[%emt 0:00:17]} 13. Bxf5 {[%emt 0:04:08]} Bxf5 {[%emt 0:00:06]} 14. Qe2 {[%emt 0:00:04]} a6 {[%emt 0:04:30]} 15. Nc3 {[%emt 0:00:08]} g5 {[%emt 0:00:20]} 16. c5 {[%emt 0:02:57]} Bg6 {[%emt 0:00:54]} 17. cxd6 {[%emt 0:00:02]} Bxd6 {[%emt 0:00:45]} 18. Be3 {[%emt 0:01:06]} f5 {[%emt 0:00:45]} 19. f3 {[%emt 0:00:03]} g4 {[%emt 0:09:57]} 20. f4 {[%emt 0:01:45]} exf4 {[%emt 0:00:22]} 21. Bxf4 {[%emt 0:00:11]} Re8 {[%emt 0:00:12]} 22. Qd2 {[%emt 0:00:28]} b5 {[%emt 0:01:53]} 23. a3 {[%emt 0:00:20]} Bxf4 {[%emt 0:00:58]} 24. Qxf4 {[%emt 0:00:03]} Qb6+ {[%emt 0:00:02]} 25. Kh1 {[%emt 0:00:03]} Rad8 {[%emt 0:00:47]} 26. Rfe1 {[%emt 0:00:14]} Rxe1+ {[%emt 0:00:45]} 27. Rxe1 {[%emt 0:00:01]} Qd6 {[%emt 0:00:01]} 28. Qg5 {[%emt 0:00:16]} Rd7 {[%emt 0:00:06]} 29. Re8+ {[%emt 0:00:29]} Kg7 {[%emt 0:00:21]} 30. Re6 {[%emt 0:00:03]} Qf8 {[%emt 0:00:16]} 31. Qf4 {[%emt 0:00:23]} Qf7 {[%emt 0:00:04]} 32. Qe5+ {[%emt 0:00:05]} Kg8 {[%emt 0:00:10]} 33. Ne2 {[%emt 0:00:00]} Qg7 {[%emt 0:00:15]} 34. Re8+ {[%emt 0:00:13]} Bxe8 {[%emt 0:00:03]} 35. Qxe8+ {[%emt 0:00:02]} Qf8 {[%emt 0:00:03]} 36. Qxd7 {[%emt 0:00:02]} h5 {[%emt 0:00:23]} 37. Nf4 {[%emt 0:00:04]} Qc5 {[%emt 0:00:09]} 38. Qe8+ {[%emt 0:00:05]} Kh7 {[%emt 0:00:09]} 39. Qf7+ {[%emt 0:00:01]} Kh8 {[%emt 0:00:03]} 40. Ng6# {[%emt 0:00:01]} 1-0